[Event "*** Qualifier 3: Titled Tuesday 3|2 Blitz"]
[Site "Chess.com"]
[Date "2017.04.18"]
[Round "8"]
[White "rithwik2002"]
[Black "DryCounty"]
[Result "1/2-1/2"]
[WhiteElo "1814"]
[BlackElo "2441"]
[TimeControl "180+2"]
[EndTime "14:50:21 PDT"]
[Termination "Game drawn - insufficient material"]

1. d4 {[%clk 0:03:02]} 1... Nf6 {[%clk 0:02:59.9]} 2. Bf4 {[%clk 0:03:00.1]}
2... Nh5 {[%clk 0:03:00]} 3. Bg5 {[%clk 0:02:59.6]} 3... h6 {[%clk 0:03:00.3]}
4. Bh4 {[%clk 0:03:00.6]} 4... g6 {[%clk 0:03:00.9]} 5. e3 {[%clk 0:03:02.3]}
5... Bg7 {[%clk 0:02:55.7]} 6. Be2 {[%clk 0:02:28.4]} 6... Nf6 {[%clk
0:02:55.6]} 7. c4 {[%clk 0:02:26.8]} 7... O-O {[%clk 0:02:55.1]} 8. Nc3 {[%clk
0:02:25.2]} 8... c5 {[%clk 0:02:53.8]} 9. Nf3 {[%clk 0:02:23.4]} 9... d6 {[%clk
0:02:49.5]} 10. O-O {[%clk 0:02:20.9]} 10... Bg4 {[%clk 0:02:47.4]} 11. h3
{[%clk 0:02:18.2]} 11... Bf5 {[%clk 0:02:41.6]} 12. g4 {[%clk 0:02:16.1]} 12...
Bd7 {[%clk 0:02:40.6]} 13. d5 {[%clk 0:02:14.6]} 13... Na6 {[%clk 0:02:39.4]}
14. Kg2 {[%clk 0:02:11.4]} 14... Nc7 {[%clk 0:02:39.1]} 15. a4 {[%clk 0:02:08]}
15... Na6 {[%clk 0:02:38.5]} 16. Bg3 {[%clk 0:02:03.4]} 16... Nb4 {[%clk
0:02:38.5]} 17. Nd2 {[%clk 0:02:00.9]} 17... Re8 {[%clk 0:02:28]} 18. f4 {[%clk
0:01:51.2]} 18... e6 {[%clk 0:02:27.2]} 19. e4 {[%clk 0:01:41.7]} 19... exd5
{[%clk 0:02:25.6]} 20. cxd5 {[%clk 0:01:32.3]} 20... Nh7 {[%clk 0:02:15.7]} 21.
Nc4 {[%clk 0:01:29.5]} 21... Bc8 {[%clk 0:01:28.8]} 22. f5 {[%clk 0:01:23.7]}
22... Bf8 {[%clk 0:01:21.3]} 23. fxg6 {[%clk 0:01:19.5]} 23... fxg6 {[%clk
0:01:21.7]} 24. e5 {[%clk 0:01:07.6]} 24... dxe5 {[%clk 0:01:20.1]} 25. Nxe5
{[%clk 0:00:47]} 25... Bg7 {[%clk 0:01:09.6]} 26. Nxg6 {[%clk 0:00:42.6]} 26...
b6 {[%clk 0:01:07]} 27. d6 {[%clk 0:00:36.4]} 27... Bb7+ {[%clk 0:01:00]} 28.
Bf3 {[%clk 0:00:32.2]} 28... Qd7 {[%clk 0:00:57]} 29. Bxb7 {[%clk 0:00:28.3]}
29... Qxb7+ {[%clk 0:00:57.7]} 30. Kh2 {[%clk 0:00:27.1]} 30... Bd4 {[%clk
0:00:47.7]} 31. Qb3+ {[%clk 0:00:24.2]} 31... Kg7 {[%clk 0:00:48.1]} 32. Ne7
{[%clk 0:00:22]} 32... Rxe7 {[%clk 0:00:33.7]} 33. dxe7 {[%clk 0:00:23.9]} 33...
Qxe7 {[%clk 0:00:34]} 34. Rae1 {[%clk 0:00:22.5]} 34... Qd7 {[%clk 0:00:33.5]}
35. Nb5 {[%clk 0:00:20.8]} 35... Bf6 {[%clk 0:00:23.8]} 36. Rd1 {[%clk
0:00:18.5]} 36... Qf7 {[%clk 0:00:20.8]} 37. Qxf7+ {[%clk 0:00:19.2]} 37... Kxf7
{[%clk 0:00:21.9]} 38. Rd7+ {[%clk 0:00:20.8]} 38... Kg6 {[%clk 0:00:22.5]} 39.
h4 {[%clk 0:00:14.1]} 39... h5 {[%clk 0:00:15.9]} 40. gxh5+ {[%clk 0:00:13.8]}
40... Kh6 {[%clk 0:00:17.1]} 41. Bf4+ {[%clk 0:00:12.1]} 41... Kxh5 {[%clk
0:00:18]} 42. Rxh7+ {[%clk 0:00:12.4]} 42... Kg6 {[%clk 0:00:19.3]} 43. Rh6+
{[%clk 0:00:13.6]} 43... Kg7 {[%clk 0:00:20.3]} 44. Bg5 {[%clk 0:00:13.2]} 44...
Be5+ {[%clk 0:00:20.8]} 45. Kh3 {[%clk 0:00:13.6]} 45... Nd5 {[%clk 0:00:18.5]}
46. Re6 {[%clk 0:00:13.7]} 46... Bxb2 {[%clk 0:00:17.8]} 47. Rd6 {[%clk
0:00:12.9]} 47... Nb4 {[%clk 0:00:12.6]} 48. Rd7+ {[%clk 0:00:13.5]} 48... Kg8
{[%clk 0:00:11.2]} 49. Rff7 {[%clk 0:00:13.6]} 49... Nc6 {[%clk 0:00:10.1]} 50.
Rc7 {[%clk 0:00:13.6]} 50... Ne5 {[%clk 0:00:10.3]} 51. Rfe7 {[%clk 0:00:14.3]}
51... Ng6 {[%clk 0:00:11]} 52. Rh7 {[%clk 0:00:14.4]} 52... Be5 {[%clk
0:00:11.1]} 53. Rcd7 {[%clk 0:00:14.4]} 53... c4 {[%clk 0:00:12]} 54. h5 {[%clk
0:00:13.3]} 54... Nf8 {[%clk 0:00:12.6]} 55. Rhe7 {[%clk 0:00:13.8]} 55... Nxd7
{[%clk 0:00:13.4]} 56. Rxd7 {[%clk 0:00:15.7]} 56... c3 {[%clk 0:00:14]} 57. h6
{[%clk 0:00:15.1]} 57... Rc8 {[%clk 0:00:13.8]} 58. h7+ {[%clk 0:00:15.9]} 58...
Kh8 {[%clk 0:00:14.9]} 59. Nd6 {[%clk 0:00:12.8]} 59... Bxd6 {[%clk 0:00:15]}
60. Rxd6 {[%clk 0:00:13]} 60... Kxh7 {[%clk 0:00:13.3]} 61. Rd7+ {[%clk
0:00:14]} 61... Kg6 {[%clk 0:00:14]} 62. Bc1 {[%clk 0:00:13.1]} 62... a5 {[%clk
0:00:13.2]} 63. Rd6+ {[%clk 0:00:14.1]} 63... Kf5 {[%clk 0:00:14]} 64. Rxb6
{[%clk 0:00:16]} 64... Ke4 {[%clk 0:00:13.8]} 65. Rb5 {[%clk 0:00:16.5]} 65...
Kd3 {[%clk 0:00:14.8]} 66. Rxa5 {[%clk 0:00:17.4]} 66... Rb8 {[%clk 0:00:15.5]}
67. Bg5 {[%clk 0:00:17.7]} 67... c2 {[%clk 0:00:14.7]} 68. Rc5 {[%clk
0:00:18.2]} 68... Rg8 {[%clk 0:00:14.7]} 69. Kg4 {[%clk 0:00:18]} 69... Ra8
{[%clk 0:00:14.4]} 70. a5 {[%clk 0:00:19]} 70... Ra6 {[%clk 0:00:14.8]} 71. Rf5
{[%clk 0:00:19.3]} 71... Rc6 {[%clk 0:00:14.5]} 72. Rd5+ {[%clk 0:00:20.2]}
72... Kc4 {[%clk 0:00:14.9]} 73. Rf5 {[%clk 0:00:18.9]} 73... Kb4 {[%clk
0:00:15.4]} 74. Rf1 {[%clk 0:00:19.2]} 74... Kxa5 {[%clk 0:00:15.7]} 75. Rc1
{[%clk 0:00:20.6]} 75... Kb4 {[%clk 0:00:16.4]} 76. Kf3 {[%clk 0:00:21.8]} 76...
Kb3 {[%clk 0:00:17.6]} 77. Bd2 {[%clk 0:00:22.9]} 77... Kb2 {[%clk 0:00:18.6]}
78. Rf1 {[%clk 0:00:23.1]} 78... Rd6 {[%clk 0:00:18.5]} 79. Be3 {[%clk
0:00:23.5]} 79... Rd3 {[%clk 0:00:19.4]} 80. Ke2 {[%clk 0:00:23.4]} 80... Rb3
{[%clk 0:00:20.4]} 81. Bd4+ {[%clk 0:00:23.9]} 81... Ka3 {[%clk 0:00:20]} 82.
Ra1+ {[%clk 0:00:25]} 82... Kb4 {[%clk 0:00:21.1]} 83. Kd2 {[%clk 0:00:26.3]}
83... Rb1 {[%clk 0:00:22.1]} 84. Kxc2 {[%clk 0:00:23.5]} 84... Rxa1 {[%clk
0:00:23.2]} 85. Bxa1 {[%clk 0:00:25.2]} 1/2-1/2

[Event "*** Qualifier 3: Titled Tuesday 3|2 Blitz"]
[Site "Chess.com"]
[Date "2017.04.18"]
[Round "8"]
[White "Aygehovit1992"]
[Black "Abrito99"]
[Result "1/2-1/2"]
[WhiteElo "2424"]
[BlackElo "2336"]
[TimeControl "180+2"]
[EndTime "14:50:37 PDT"]
[Termination "Game drawn by agreement"]

1. e4 {[%clk 0:03:02]} 1... e6 {[%clk 0:03:00]} 2. Qe2 {[%clk 0:03:02.9]} 2...
c5 {[%clk 0:02:59.7]} 3. Nf3 {[%clk 0:03:02.7]} 3... Nc6 {[%clk 0:03:00.3]} 4.
g3 {[%clk 0:03:04.2]} 4... Be7 {[%clk 0:02:57.4]} 5. Bg2 {[%clk 0:03:05.4]} 5...
Nf6 {[%clk 0:02:56.4]} 6. O-O {[%clk 0:03:04.4]} 6... d5 {[%clk 0:02:56.4]} 7.
e5 {[%clk 0:03:05.2]} 7... Nd7 {[%clk 0:02:57.5]} 8. d3 {[%clk 0:03:05.9]} 8...
b5 {[%clk 0:02:57.8]} 9. h4 {[%clk 0:03:06.4]} 9... Bb7 {[%clk 0:02:58.2]} 10.
h5 {[%clk 0:03:07.5]} 10... h6 {[%clk 0:02:58.8]} 11. a4 {[%clk 0:03:07.8]}
11... bxa4 {[%clk 0:02:55.8]} 12. Rxa4 {[%clk 0:03:06.4]} 12... d4 {[%clk
0:02:51.7]} 13. Nbd2 {[%clk 0:03:06.4]} 13... Qc7 {[%clk 0:02:45.4]} 14. Re1
{[%clk 0:03:06.2]} 14... Nb4 {[%clk 0:01:58.1]} 15. Nc4 {[%clk 0:03:00.4]} 15...
Nb6 {[%clk 0:01:57.1]} 16. Nd6+ {[%clk 0:02:36.9]} 16... Bxd6 {[%clk 0:01:44.6]}
17. exd6 {[%clk 0:02:38.8]} 17... Qxd6 {[%clk 0:01:45.8]} 18. Bf4 {[%clk
0:02:39]} 18... Qe7 {[%clk 0:01:38.6]} 19. Ra5 {[%clk 0:02:35.4]} 19... N4d5
{[%clk 0:01:34.8]} 20. Bd2 {[%clk 0:02:21.4]} 20... O-O {[%clk 0:01:35.2]} 21.
c4 {[%clk 0:02:21.5]} 21... dxc3 {[%clk 0:01:23.3]} 22. bxc3 {[%clk 0:02:21.2]}
22... Rfd8 {[%clk 0:01:24.6]} 23. Ne5 {[%clk 0:02:12.5]} 23... Nf6 {[%clk
0:01:02.4]} 24. Nc6 {[%clk 0:01:59.4]} 24... Bxc6 {[%clk 0:00:59.5]} 25. Bxc6
{[%clk 0:02:01.3]} 25... Rac8 {[%clk 0:01:00.4]} 26. Bg2 {[%clk 0:02:02.2]}
26... Qd7 {[%clk 0:00:55.8]} 27. Bf1 {[%clk 0:02:03.3]} 27... Rc7 {[%clk
0:00:47.3]} 28. Rea1 {[%clk 0:02:03.5]} 28... Nc4 {[%clk 0:00:31.1]} 29. dxc4
{[%clk 0:02:04.2]} 29... Qxd2 {[%clk 0:00:31.8]} 30. Qxd2 {[%clk 0:02:03.2]}
30... Rxd2 {[%clk 0:00:31.4]} 31. Rxa7 {[%clk 0:02:05.1]} 31... Rxa7 {[%clk
0:00:32.2]} 32. Rxa7 {[%clk 0:02:05.9]} 32... Ne4 {[%clk 0:00:16.7]} 33. Rc7
{[%clk 0:02:06.7]} 33... Kf8 {[%clk 0:00:12.5]} 34. Bg2 {[%clk 0:02:05.6]} 34...
Nxf2 {[%clk 0:00:09.4]} 35. Rxc5 {[%clk 0:02:06.7]} 35... Ng4 {[%clk 0:00:11]}
36. Bf3 {[%clk 0:02:05]} 36... Ne3 {[%clk 0:00:10.3]} 37. Rc8+ {[%clk
0:02:01.3]} 37... Ke7 {[%clk 0:00:10]} 38. c5 {[%clk 0:02:02.8]} 38... Rc2
{[%clk 0:00:11.1]} 39. c6 {[%clk 0:02:03.7]} 39... Rxc3 {[%clk 0:00:11.9]} 40.
Kf2 {[%clk 0:01:59.1]} 40... Nd5 {[%clk 0:00:09]} 41. g4 {[%clk 0:01:51]} 41...
Kd6 {[%clk 0:00:07.3]} 42. Rd8+ {[%clk 0:01:48.3]} 42... Kc7 {[%clk 0:00:05.2]}
43. Rd7+ {[%clk 0:01:48]} 43... Kxc6 {[%clk 0:00:06.3]} 44. Rxf7 {[%clk
0:01:49.9]} 44... Kd6 {[%clk 0:00:06.6]} 45. Rxg7 {[%clk 0:01:50.9]} 45... Nf4
{[%clk 0:00:06.1]} 46. Be4 {[%clk 0:01:29.5]} 46... Nh3+ {[%clk 0:00:06.6]} 47.
Ke2 {[%clk 0:01:29.2]} 47... Rg3 {[%clk 0:00:04.4]} 48. Bb1 {[%clk 0:01:11.1]}
48... Ke5 {[%clk 0:00:05.5]} 49. Rh7 {[%clk 0:01:09.1]} 49... Ng5 {[%clk
0:00:04.8]} 50. Rxh6 {[%clk 0:01:09.5]} 50... Rxg4 {[%clk 0:00:06.4]} 51. Rg6
{[%clk 0:01:08.2]} 51... Rg2+ {[%clk 0:00:07.2]} 52. Kd1 {[%clk 0:01:07.4]}
52... Rb2 {[%clk 0:00:08.3]} 53. Kc1 {[%clk 0:01:07.5]} 53... Rg2 {[%clk
0:00:08.3]} 54. h6 {[%clk 0:01:07.9]} 54... Rg1+ {[%clk 0:00:08.1]} 55. Kb2
{[%clk 0:01:08.5]} 55... Rg2+ {[%clk 0:00:08.9]} 56. Ka1 {[%clk 0:01:09.8]}
56... Kf4 {[%clk 0:00:07.5]} 57. h7 {[%clk 0:01:10]} 57... Rh2 {[%clk
0:00:08.4]} 58. Rg7 {[%clk 0:01:05.7]} 58... e5 {[%clk 0:00:09]} 59. Rg8 {[%clk
0:01:06.9]} 59... Nxh7 {[%clk 0:00:08.6]} 60. Rh8 {[%clk 0:01:06.5]} 60... e4
{[%clk 0:00:10]} 61. Re8 {[%clk 0:01:07.3]} 61... Ng5 {[%clk 0:00:09.6]} 62.
Rf8+ {[%clk 0:01:06.9]} 62... Ke3 {[%clk 0:00:08.2]} 63. Rg8 {[%clk 0:01:08.2]}
63... Nf3 {[%clk 0:00:08.6]} 64. Re8 {[%clk 0:01:08.8]} 64... Nd2 {[%clk
0:00:09.8]} 65. Ba2 {[%clk 0:01:09.6]} 65... Nf3 {[%clk 0:00:07.6]} 66. Bd5
{[%clk 0:01:09.5]} 66... Nd2 {[%clk 0:00:07.5]} 67. Kb2 {[%clk 0:01:10.4]} 67...
Kd4 {[%clk 0:00:08]} 68. Ba8 {[%clk 0:01:08.9]} 68... e3 {[%clk 0:00:09.1]} 69.
Rd8+ {[%clk 0:01:07.6]} 69... Ke5 {[%clk 0:00:08.4]} 70. Kc3 {[%clk 0:01:08.2]}
70... Ne4+ {[%clk 0:00:08.5]} 71. Kb3 {[%clk 0:01:08.2]} 71... e2 {[%clk
0:00:06.4]} 72. Re8+ {[%clk 0:01:08.8]} 72... Kf5 {[%clk 0:00:07.5]} 73. Bxe4+
{[%clk 0:01:06.2]} 73... Kf4 {[%clk 0:00:08.9]} 74. Bd3 {[%clk 0:01:07.4]} 74...
Rh3 {[%clk 0:00:09]} 75. Kc2 {[%clk 0:01:07.1]} 75... Re3 {[%clk 0:00:10.4]} 76.
Rf8+ {[%clk 0:01:06.3]} 76... Ke5 {[%clk 0:00:10.3]} 77. Re8+ {[%clk 0:01:03.6]}
77... Kf4 {[%clk 0:00:11]} 78. Rf8+ {[%clk 0:01:04.5]} 78... Ke5 {[%clk
0:00:11.9]} 79. Bxe2 {[%clk 0:00:57.6]} 79... Rxe2+ {[%clk 0:00:12.4]} 80. Kd3
{[%clk 0:00:59.5]} 80... Rh2 {[%clk 0:00:13.5]} 1/2-1/2

[Event "*** Qualifier 3: Titled Tuesday 3|2 Blitz"]
[Site "Chess.com"]
[Date "2017.04.18"]
[Round "9"]
[White "Rock700chess"]
[Black "Blitzstream"]
[Result "1/2-1/2"]
[WhiteElo "2257"]
[BlackElo "2462"]
[TimeControl "180+2"]
[EndTime "14:54:02 PDT"]
[Termination "Game drawn by agreement"]

1. e4 {[%clk 0:03:02]} 1... e6 {[%clk 0:03:00.6]} 2. d4 {[%clk 0:03:03.1]} 2...
d5 {[%clk 0:03:01.6]} 3. Nc3 {[%clk 0:03:04.7]} 3... dxe4 {[%clk 0:03:01.9]} 4.
Nxe4 {[%clk 0:03:06.6]} 4... Bd7 {[%clk 0:03:03.6]} 5. Bd3 {[%clk 0:03:03.2]}
5... Bc6 {[%clk 0:03:04.8]} 6. c3 {[%clk 0:03:04.3]} 6... Nd7 {[%clk 0:03:06]}
7. Nf3 {[%clk 0:03:04.8]} 7... Ngf6 {[%clk 0:03:07.2]} 8. Qe2 {[%clk 0:03:05.9]}
8... Nxe4 {[%clk 0:03:07.6]} 9. Bxe4 {[%clk 0:03:06.3]} 9... Bxe4 {[%clk
0:03:09.5]} 10. Qxe4 {[%clk 0:03:08]} 10... c6 {[%clk 0:03:11.4]} 11. Bf4 {[%clk
0:03:04.5]} 11... Nf6 {[%clk 0:03:10]} 12. Qd3 {[%clk 0:03:04.6]} 12... Bd6
{[%clk 0:03:10.8]} 13. Bg5 {[%clk 0:03:03]} 13... h6 {[%clk 0:03:09.5]} 14. Bh4
{[%clk 0:03:01.2]} 14... Qc7 {[%clk 0:03:09.7]} 15. Bxf6 {[%clk 0:02:58.6]}
15... gxf6 {[%clk 0:03:10.6]} 16. O-O-O {[%clk 0:02:57]} 16... O-O-O {[%clk
0:03:08.3]} 17. Kb1 {[%clk 0:02:56.7]} 17... c5 {[%clk 0:03:07]} 18. g3 {[%clk
0:02:57]} 18... Qc6 {[%clk 0:03:01.9]} 19. d5 {[%clk 0:02:53.9]} 19... exd5
{[%clk 0:02:48.9]} 20. Qxd5 {[%clk 0:02:55.8]} 20... Qxd5 {[%clk 0:02:50.5]} 21.
Rxd5 {[%clk 0:02:57.7]} 1/2-1/2

[Event "*** Qualifier 3: Titled Tuesday 3|2 Blitz"]
[Site "Chess.com"]
[Date "2017.04.18"]
[Round "9"]
[White "alekroth64"]
[Black "juniortay"]
[Result "0-1"]
[WhiteElo "2225"]
[BlackElo "2229"]
[TimeControl "180+2"]
[EndTime "14:56:03 PDT"]
[Termination "juniortay won by resignation"]

1. d4 {[%clk 0:03:02]} 1... Nf6 {[%clk 0:03:00.1]} 2. c4 {[%clk 0:03:03.4]} 2...
d6 {[%clk 0:03:00.7]} 3. Nc3 {[%clk 0:03:02.9]} 3... Nbd7 {[%clk 0:03:02.6]} 4.
e4 {[%clk 0:03:03.7]} 4... e5 {[%clk 0:03:04.1]} 5. Nf3 {[%clk 0:03:04.5]} 5...
Be7 {[%clk 0:03:04.2]} 6. h3 {[%clk 0:03:04]} 6... O-O {[%clk 0:03:05]} 7. Be3
{[%clk 0:03:04.3]} 7... c6 {[%clk 0:03:04.7]} 8. Be2 {[%clk 0:03:04.7]} 8... Qe8
{[%clk 0:03:04.2]} 9. O-O {[%clk 0:03:03.6]} 9... Bd8 {[%clk 0:03:05.6]} 10. Qc2
{[%clk 0:02:50.9]} 10... Qe7 {[%clk 0:03:04.2]} 11. b4 {[%clk 0:02:44.2]} 11...
Bb6 {[%clk 0:03:02.6]} 12. c5 {[%clk 0:02:43.9]} 12... dxc5 {[%clk 0:03:03.1]}
13. dxc5 {[%clk 0:02:40.2]} 13... Bc7 {[%clk 0:03:04]} 14. Nd2 {[%clk
0:02:21.8]} 14... Rd8 {[%clk 0:02:55.5]} 15. Nc4 {[%clk 0:02:16.4]} 15... Nf8
{[%clk 0:02:55.9]} 16. b5 {[%clk 0:02:01.5]} 16... Ne6 {[%clk 0:02:49.9]} 17.
bxc6 {[%clk 0:02:02]} 17... bxc6 {[%clk 0:02:49.1]} 18. Na4 {[%clk 0:02:02.8]}
18... Nd4 {[%clk 0:02:47.5]} 19. Bxd4 {[%clk 0:01:56.2]} 19... Rxd4 {[%clk
0:02:49.4]} 20. f3 {[%clk 0:01:41.6]} 20... Nh5 {[%clk 0:02:47.5]} 21. Rfd1
{[%clk 0:01:42.1]} 21... Nf4 {[%clk 0:02:42.5]} 22. Bf1 {[%clk 0:01:40.1]} 22...
Be6 {[%clk 0:02:31.1]} 23. Nd6 {[%clk 0:01:39.8]} 23... Bxd6 {[%clk 0:02:25]}
24. cxd6 {[%clk 0:01:40]} 24... Qxd6 {[%clk 0:02:26.5]} 25. Nc5 {[%clk 0:01:36]}
25... h5 {[%clk 0:01:46.8]} 26. Rxd4 {[%clk 0:01:29.8]} 26... Qxd4+ {[%clk
0:01:45.7]} 27. Kh2 {[%clk 0:01:29.6]} 27... Qxa1 {[%clk 0:01:46.6]} 0-1

[Event "*** Qualifier 3: Titled Tuesday 3|2 Blitz"]
[Site "Chess.com"]
[Date "2017.04.18"]
[Round "9"]
[White "GianmarcoVaR"]
[Black "PelinGorki"]
[Result "1-0"]
[WhiteElo "2478"]
[BlackElo "2369"]
[TimeControl "180+2"]
[EndTime "14:56:10 PDT"]
[Termination "GianmarcoVaR won by resignation"]

1. d4 {[%clk 0:02:33.4]} 1... d6 {[%clk 0:03:02]} 2. Nf3 {[%clk 0:02:34.4]} 2...
Nf6 {[%clk 0:03:02.8]} 3. g3 {[%clk 0:02:36.3]} 3... c6 {[%clk 0:03:04.1]} 4.
Bg2 {[%clk 0:02:38.2]} 4... Bg4 {[%clk 0:03:05]} 5. O-O {[%clk 0:02:40.1]} 5...
Nbd7 {[%clk 0:03:06.2]} 6. c4 {[%clk 0:02:38]} 6... e5 {[%clk 0:03:07.4]} 7. Nc3
{[%clk 0:02:39.2]} 7... Be7 {[%clk 0:03:08.1]} 8. d5 {[%clk 0:02:33]} 8... O-O
{[%clk 0:03:08.6]} 9. h3 {[%clk 0:02:31]} 9... Bxf3 {[%clk 0:03:08.7]} 10. Bxf3
{[%clk 0:02:32]} 10... Qc7 {[%clk 0:03:10.6]} 11. e4 {[%clk 0:02:28.9]} 11... a6
{[%clk 0:03:10.8]} 12. Be3 {[%clk 0:02:29.6]} 12... b5 {[%clk 0:03:12.1]} 13.
dxc6 {[%clk 0:02:30.6]} 13... Qxc6 {[%clk 0:03:14]} 14. cxb5 {[%clk 0:02:31.5]}
14... axb5 {[%clk 0:03:15.9]} 15. a3 {[%clk 0:02:32.2]} 15... Nb6 {[%clk
0:03:15.3]} 16. Qb3 {[%clk 0:02:31.7]} 16... Ra5 {[%clk 0:03:09.1]} 17. Rfd1
{[%clk 0:02:27.5]} 17... Nc4 {[%clk 0:03:09.5]} 18. Bg5 {[%clk 0:02:28.7]} 18...
Rb8 {[%clk 0:03:06]} 19. Rac1 {[%clk 0:02:27.7]} 19... Qa6 {[%clk 0:02:45.8]}
20. h4 {[%clk 0:02:27.7]} 20... h6 {[%clk 0:02:14.2]} 21. Bxf6 {[%clk
0:02:26.5]} 21... Bxf6 {[%clk 0:02:16.1]} 22. Be2 {[%clk 0:02:22.4]} 22... Rc8
{[%clk 0:02:04.7]} 23. Nd5 {[%clk 0:02:22.6]} 23... Ra4 {[%clk 0:02:01.4]} 24.
Nxf6+ {[%clk 0:01:59.6]} 24... gxf6 {[%clk 0:02:03.3]} 25. Qf3 {[%clk
0:01:59.5]} 25... Kg7 {[%clk 0:01:57.6]} 26. b3 {[%clk 0:01:59.5]} 26... Rxa3
{[%clk 0:01:55.1]} 27. Qg4+ {[%clk 0:01:59.4]} 27... Kh8 {[%clk 0:01:56.2]} 28.
bxc4 {[%clk 0:02:00.2]} 28... Rg8 {[%clk 0:01:57.7]} 29. Qf5 {[%clk 0:02:00.4]}
29... d5 {[%clk 0:01:54.2]} 30. cxd5 {[%clk 0:01:52.1]} 30... Qb6 {[%clk
0:01:55]} 31. Kf1 {[%clk 0:01:50.8]} 31... Raxg3 {[%clk 0:01:52]} 32. fxg3
{[%clk 0:01:50.6]} 32... Rxg3 {[%clk 0:01:53.5]} 33. Qf2 {[%clk 0:01:47.1]} 1-0

[Event "*** Qualifier 3: Titled Tuesday 3|2 Blitz"]
[Site "Chess.com"]
[Date "2017.04.18"]
[Round "9"]
[White "saraswathii"]
[Black "stefanodinn"]
[Result "1-0"]
[WhiteElo "2225"]
[BlackElo "2180"]
[TimeControl "180+2"]
[EndTime "14:57:32 PDT"]
[Termination "saraswathii won on time"]

1. e4 {[%clk 0:03:02]} 1... e5 {[%clk 0:02:55.2]} 2. d3 {[%clk 0:03:03]} 2...
Nc6 {[%clk 0:02:45.5]} 3. Nf3 {[%clk 0:03:03.3]} 3... Nf6 {[%clk 0:02:44.9]} 4.
g3 {[%clk 0:03:04.1]} 4... d5 {[%clk 0:02:45.4]} 5. exd5 {[%clk 0:03:03.4]} 5...
Nxd5 {[%clk 0:02:46.1]} 6. Bg2 {[%clk 0:03:04.2]} 6... Be7 {[%clk 0:02:43.3]} 7.
O-O {[%clk 0:03:04.1]} 7... O-O {[%clk 0:02:43.6]} 8. h3 {[%clk 0:03:04.4]} 8...
Be6 {[%clk 0:02:42.5]} 9. Re1 {[%clk 0:03:00.7]} 9... Bf6 {[%clk 0:02:23]} 10.
Nbd2 {[%clk 0:02:54.2]} 10... Qd7 {[%clk 0:01:45.7]} 11. Kh2 {[%clk 0:02:53]}
11... Nb6 {[%clk 0:01:27.8]} 12. Ne4 {[%clk 0:02:45.7]} 12... Be7 {[%clk
0:01:26.8]} 13. g4 {[%clk 0:02:39.9]} 13... f5 {[%clk 0:01:18.1]} 14. gxf5
{[%clk 0:02:38.9]} 14... Bxf5 {[%clk 0:01:15.4]} 15. Ng3 {[%clk 0:02:39.4]}
15... Be6 {[%clk 0:01:08.4]} 16. Nxe5 {[%clk 0:01:57.5]} 16... Nxe5 {[%clk
0:01:08.8]} 17. Rxe5 {[%clk 0:01:59.4]} 17... Rxf2 {[%clk 0:00:43.8]} 18. Qe1
{[%clk 0:01:56.8]} 18... Rf6 {[%clk 0:00:27.2]} 19. Bg5 {[%clk 0:01:46.3]} 19...
Rg6 {[%clk 0:00:09.6]} 20. Bxe7 {[%clk 0:01:45.7]} 20... Qxe7 {[%clk 0:00:09.7]}
21. Be4 {[%clk 0:01:33.1]} 21... Rf6 {[%clk 0:00:02.2]} 22. Nh5 {[%clk
0:01:16.7]} 22... Rh6 {[%clk 0:00:02.3]} 23. Nf4 {[%clk 0:01:15.6]} 1-0

[Event "*** Qualifier 3: Titled Tuesday 3|2 Blitz"]
[Site "Chess.com"]
[Date "2017.04.18"]
[Round "9"]
[White "DavidMarkosyan"]
[Black "rasmussvane"]
[Result "1/2-1/2"]
[WhiteElo "2341"]
[BlackElo "2516"]
[TimeControl "180+2"]
[EndTime "14:57:57 PDT"]
[Termination "Game drawn by repetition"]

1. e4 {[%clk 0:03:02]} 1... c6 {[%clk 0:03:00.8]} 2. d4 {[%clk 0:03:02.2]} 2...
d5 {[%clk 0:03:02]} 3. Nd2 {[%clk 0:03:03.9]} 3... dxe4 {[%clk 0:03:03]} 4. Nxe4
{[%clk 0:03:04.5]} 4... Bf5 {[%clk 0:03:04.6]} 5. Ng3 {[%clk 0:03:04.5]} 5...
Bg6 {[%clk 0:03:06.2]} 6. h4 {[%clk 0:02:59.1]} 6... h6 {[%clk 0:03:07.1]} 7.
Nf3 {[%clk 0:02:59.7]} 7... e6 {[%clk 0:03:08.5]} 8. Ne5 {[%clk 0:03:00.5]} 8...
Bh7 {[%clk 0:03:09.9]} 9. Bc4 {[%clk 0:03:01]} 9... Nd7 {[%clk 0:03:08.1]} 10.
Qe2 {[%clk 0:02:58]} 10... Nxe5 {[%clk 0:03:01.5]} 11. dxe5 {[%clk 0:02:56.2]}
11... Ne7 {[%clk 0:03:00.8]} 12. Bd2 {[%clk 0:02:47.3]} 12... Qc7 {[%clk
0:02:44.1]} 13. f4 {[%clk 0:02:46.4]} 13... Nf5 {[%clk 0:02:35.2]} 14. Nxf5
{[%clk 0:02:44]} 14... Bxf5 {[%clk 0:02:36.8]} 15. g4 {[%clk 0:02:38.9]} 15...
Bxc2 {[%clk 0:02:25.4]} 16. Bc3 {[%clk 0:02:35.9]} 16... Bh7 {[%clk 0:02:20.6]}
17. O-O-O {[%clk 0:02:36.1]} 17... Be7 {[%clk 0:01:28.7]} 18. f5 {[%clk
0:02:35.5]} 18... O-O {[%clk 0:01:20.5]} 19. fxe6 {[%clk 0:02:26.7]} 19... fxe6
{[%clk 0:01:20.7]} 20. Bxe6+ {[%clk 0:02:27.4]} 20... Kh8 {[%clk 0:01:21.8]} 21.
Rd7 {[%clk 0:02:28.4]} 21... Qb6 {[%clk 0:01:10.4]} 22. Rxe7 {[%clk 0:02:05.8]}
22... Rf2 {[%clk 0:01:11]} 23. Qd1 {[%clk 0:02:04.1]} 23... Rd8 {[%clk
0:00:51.9]} 24. Rd7 {[%clk 0:01:45.9]} 24... Qe3+ {[%clk 0:00:36.1]} 25. Bd2
{[%clk 0:01:38.4]} 25... Qc5+ {[%clk 0:00:32.1]} 26. Bc3 {[%clk 0:01:36.4]}
26... Qe3+ {[%clk 0:00:32.4]} 27. Bd2 {[%clk 0:01:33.6]} 27... Qc5+ {[%clk
0:00:24.2]} 28. Bc3 {[%clk 0:01:33.6]} 28... Qe3+ {[%clk 0:00:09.1]} 29. Bd2
{[%clk 0:01:22.7]} 29... Qc5+ {[%clk 0:00:08.4]} 30. Bc3 {[%clk 0:01:22.5]}
30... Qe3+ {[%clk 0:00:09.3]} 31. Bd2 {[%clk 0:01:23.3]} 31... Qc5+ {[%clk
0:00:10.4]} 32. Bc3 {[%clk 0:01:24.4]} 32... Qe3+ {[%clk 0:00:11]} 1/2-1/2